[Event "34th GER-ch Seniors-50 2022"]
[Site "Magdeburg"]
[Date "2022.08.19"]
[Round "8.6"]
[White "Schulze, Andreas"]
[Black "Koscielski, Janusz"]
[Result "0-1"]
[ECO "B12"]
[WhiteElo "2082"]
[BlackElo "2255"]
[Annotator "TA"]
[PlyCount "43"]
[EventDate "2022.08.12"]
[EventType "swiss"]
[EventCountry "GER"]
[SourceTitle "playchess.com"]
[Source "ChessBase"]
[SourceQuality "1"]
[TimeControl "40/5400+30:1800+30"]

{[%evp 12,43,-37,-24,-9,-33,-33,-29,-30,-86,-82,-85,-79,-73,-78,-97,-97,-93,-74,-72,-65,-63,-64,-121,-125,-237,-222,-409,-422,-647,-635,-29975,-29976,-6434]} 1. e4 {[%emt 0:00:39]} c6 {[%emt 0:00:07]} 2. d4 {[%emt 0:00:12]} d5 {[%emt 0:00:05]} 3. e5 {[%emt 0:04:11]} Bf5 {[%emt 0:00:13]} 4. Ne2 {[%emt 0:00:11]} e6 {[%emt 0:01:33]} 5. Ng3 {[%emt 0:01:00]} Bg6 {[%emt 0:00:20]} 6. h4 {[%emt 0:00:17]} h5 {[%emt 0:01:19]} 7. Bd3 {[%emt 0:05:23]} Bxd3 {[%emt 0:01:40] B12: Caro-Kann: Advance Variation.} 8. cxd3 {[%emt 0:00:45]} Qb6 {[%emt 0:04:21]} 9. Ne2 {[%emt 0:00:19]} Ne7 {[%emt 0:02:04] Black has an edge.} 10. Nbc3 {[%emt 0:00:08]} (10. Nd2 $11) 10... Nf5 $17 {[%emt 0:02:22]} 11. Na4 {[%emt 0:00:14] [#]} Qa5+ $146 {[%emt 0:11:30]} ({Predecessor:} 11... Bb4+ 12. Bd2 Qa5 13. b3 Nd7 14. a3 Bxd2+ 15. Qxd2 Qxd2+ 16. Kxd2 Rc8 17. b4 Ke7 {1-0 (54) Jahnz,F (2118)-Frick,C (1889) Playchess.com INT 2020}) 12. Kf1 {[%emt 0:01:11]} Nd7 {[%emt 0:03:00]} 13. Bf4 {[%emt 0:24:28]} b5 {[%emt 0:16:54][%cal Bb7b5,Bb5b4][%mdl 32] Black is more active.} 14. Nac3 {[%emt 0:03:19]} b4 {[%emt 0:01:10]} 15. Na4 {[%emt 0:01:33]} Nb6 {[%emt 0:01:36]} 16. Nxb6 {[%emt 0:06:15]} axb6 {[%emt 0:00:21]} 17. Ng3 {[%emt 0:11:34]} (17. g3 $15) 17... Nxd4 {[%emt 0:06:57] And now ...Qa4 would win.} 18. Nxh5 {[%emt 0:00:19] [#]} (18. Be3 $17 Bc5 19. Ne2 Nxe2 20. Qxe2) 18... Qa4 $1 $19 {[%emt 0:11:42] Threatens to win with ...Qxd1+.} 19. Qg4 {[%emt 0:11:14]} (19. Be3) 19... Qc2 {[%emt 0:03:51][%cal Oa8a2] aiming for ...Rxa2!} 20. Nxg7+ {[%emt 0:04:40]} (20. Rd1 $142 Rxa2 21. g3) 20... Bxg7 {[%emt 0:01:05]} 21. Qxg7 {[%emt 0:00:05]} Qxd3+ {[%emt 0:00:15]} 22. Kg1 {[%emt 0:00:06] Weighted Error Value: White=1.07/Black=0.02 (flawless)} 0-1

[Event "34th GER-ch Seniors-50 2022"]
[Site "Magdeburg"]
[Date "2022.08.19"]
[Round "8.7"]
[White "Schleicher, Guido"]
[Black "Juegel, Marcel"]
[Result "1/2-1/2"]
[ECO "C02"]
[WhiteElo "2234"]
[BlackElo "2126"]
[Annotator "TA"]
[PlyCount "76"]
[EventDate "2022.08.12"]
[EventType "swiss"]
[EventCountry "GER"]
[SourceTitle "playchess.com"]
[Source "ChessBase"]
[SourceQuality "1"]
[TimeControl "40/5400+30:1800+30"]

{[%evp 10,76,0,-6,45,39,87,0,0,0,26,29,24,19,61,31,16,2,68,43,70,14,22,30,35,27,32,0,0,8,12,0,22,36,75,89,73,37,39,0,37,79,93,112,99,101,100,93,92,74,108,79,79,-6,64,-92,-95,-99,0,0,0,0,0,0,0,0,0,0,0]} 1. e4 {[%emt 0:00:06]} e6 {[%emt 0:01:02]} 2. d4 {[%emt 0:00:20]} d5 {[%emt 0:00:15]} 3. e5 {[%emt 0:00:13]} c5 {[%emt 0:11:02]} 4. c3 {[%emt 0:00:28]} Nc6 {[%emt 0:00:06]} 5. Nf3 {[%emt 0:00:15]} Bd7 {[%emt 0:01:42]} 6. Bd3 {[%emt 0:00:23]} Nh6 {[%emt 0:02:06] C02: French: Advance Variation.} (6... Rc8 $11) 7. O-O $14 {[%emt 0:04:52]} Qb6 {[%emt 0:00:59]} (7... cxd4 $14 {is superior.} 8. cxd4 Qb6) 8. Re1 {[%emt 0:02:06]} (8. dxc5 $16 Bxc5 9. h3) 8... cxd4 $11 {[%emt 0:07:00]} 9. a3 {[%emt 0:00:42] [#]} a5 $146 {[%emt 0:10:13]} ({Predecessor:} 9... Rc8 10. b4 dxc3 11. Be3 d4 12. Bxh6 gxh6 13. Re4 Bg7 14. b5 Na5 15. Rxd4 Bxb5 {0-1 (26) Jones,G (2670)-Lugovskoy,M (2420) Chess.com INT 2020}) 10. c4 {[%emt 0:07:29]} dxc4 {[%emt 0:01:28]} 11. Bxc4 {[%emt 0:03:52]} a4 {[%emt 0:06:09]} 12. Nbd2 {[%emt 0:07:48][%mdl 1024] White has compensation.} (12. Bxh6 $5 gxh6 13. Nbd2 $11) 12... Na5 {[%emt 0:09:18]} 13. Bd3 {[%emt 0:06:32]} Ng4 {[%emt 0:04:03]} (13... Be7 $11) 14. Qe2 {[%emt 0:06:24]} (14. Re4 h5 $15) 14... Be7 {[%emt 0:03:54]} 15. h3 {[%emt 0:04:27]} (15. Qe4 $6 Nh6 $15) (15. Rb1 $14) 15... Nh6 {[%emt 0:00:28]} 16. Ne4 {[%emt 0:07:59]} Nb3 {[%emt 0:01:15]} 17. Bxh6 {[%emt 0:02:06]} gxh6 {[%emt 0:00:30]} 18. Rad1 {[%emt 0:00:38][%cal Ba1d1,Bd1d2,Bd2c2][%mdl 32]} (18. Nfd2 $5) 18... O-O-O $1 {[%emt 0:04:02]} 19. Nfd2 {[%emt 0:04:13]} Nxd2 {[%emt 0:02:47]} 20. Rxd2 {[%emt 0:01:50]} Kb8 {[%emt 0:01:25]} 21. Qh5 {[%emt 0:02:19][%csl LRf7,LRh6]} Bg5 {[%emt 0:05:26]} 22. Nxg5 {[%emt 0:02:40] White is more active.} hxg5 {[%emt 0:00:08]} 23. Qxf7 {[%emt 0:00:44]} h5 {[%emt 0:00:59]} 24. Rc2 {[%emt 0:03:44]} Qb3 {[%emt 0:01:53]} (24... g4 $5 {[%cal Rg4h3]}) 25. Be4 {[%emt 0:01:01]} d3 {[%emt 0:02:37]} 26. Rd2 {[%emt 0:00:52]} Bc6 {[%emt 0:03:08]} 27. Bxc6 {[%emt 0:04:18]} bxc6 {[%emt 0:00:00]} 28. Rc1 {[%emt 0:06:22]} Qd5 {[%emt 0:00:25]} 29. Qe7 {[%emt 0:00:54]} g4 {[%emt 0:02:42] [#] Threatens to win with ...gxh3.} 30. Qb4+ {[%emt 0:04:53]} Qb5 {[%emt 0:01:42]} 31. hxg4 {[%emt 0:00:34]} (31. Rxc6 $16 Qxb4 32. axb4) 31... hxg4 {[%emt 0:00:58]} ({Black should try} 31... Qxb4 $11 32. axb4 hxg4) 32. Rxc6 $2 {[%emt 0:00:20]} ({Of course not} 32. Qxg4 Qxe5 33. g3 (33. Qb4+ $2 Kc7 $19) 33... Qd5 $11) (32. Rc4 $1 $14 {keeps the upper hand.}) 32... Qxb4 $17 {[%emt 0:00:18]} 33. axb4 $16 {[%emt 0:00:05][%mdl 4096] Endgame [#] KRR-KRR} Rd4 {[%emt 0:01:13]} (33... Rh5 $1 $17 {( -> ...Rdh8)} 34. g3 (34. Rxe6 $2 Rdh8 $19) 34... Rxe5) 34. Rxe6 {[%emt 0:00:47] The position is equal.} Rc4 {[%emt 0:01:08]} 35. g3 $1 {[%emt 0:02:20]} Rc1+ {[%emt 0:00:13]} 36. Kg2 {[%emt 0:00:53] Hoping for Rb6+.} Rhh1 {[%emt 0:01:04][%csl Gh1][%cal Rc1g1]} 37. f4 {[%emt 0:00:42]} ({Avoid the trap} 37. Re8+ $2 Kc7 38. f4 Rc2 39. Kxh1 (39. Re7+ $2 Kc8 $19) 39... Rxd2 $19) 37... Rcf1 {[%emt 0:06:46]} 38. Rd6 {[%emt 0:00:49]} Rhg1+ {[%emt 0:00:12] Weighted Error Value: White=0.26 (precise) /Black=0.24 (precise)} 1/2-1/2

[Event "34th GER-ch Seniors-50 2022"]
[Site "Magdeburg"]
[Date "2022.08.19"]
[Round "8.8"]
[White "Hirn, Oskar"]
[Black "Ratzmann, Immo"]
[Result "1-0"]
[ECO "D79"]
[WhiteElo "2188"]
[BlackElo "2064"]
[Annotator "TA"]
[PlyCount "73"]
[EventDate "2022.08.12"]
[EventType "swiss"]
[EventCountry "GER"]
[SourceTitle "playchess.com"]
[Source "ChessBase"]
[SourceQuality "1"]
[TimeControl "40/5400+30:1800+30"]

{[%evp 20,73,0,0,13,0,0,0,0,0,12,0,0,0,0,0,17,7,7,0,0,0,0,0,0,0,0,0,0,0,0,0,0,0,0,0,0,0,0,0,0,0,0,2,18,0,0,0,4,8,30,25,166,165,298,282]} 1. d4 {[%emt 0:00:35]} Nf6 {[%emt 0:00:38]} 2. g3 {[%emt 0:00:18]} g6 {[%emt 0:00:15]} 3. Bg2 {[%emt 0:00:04]} d5 {[%emt 0:00:26]} 4. Nf3 {[%emt 0:00:51]} Bg7 {[%emt 0:00:49]} 5. O-O {[%emt 0:00:46]} O-O {[%emt 0:00:08]} 6. c4 {[%emt 0:06:02]} c6 {[%emt 0:01:07]} 7. cxd5 {[%emt 0:01:35]} cxd5 {[%emt 0:00:03]} 8. Ne5 {[%emt 0:00:21]} Ng4 {[%emt 0:18:34]} 9. Nxg4 {[%emt 0:33:30]} Bxg4 {[%emt 0:00:28]} 10. Nc3 {[%emt 0:00:11]} Nc6 {[%emt 0:06:58]} 11. h3 {[%emt 0:02:27]} Bc8 {[%emt 0:05:05] D79: Fianchetto Grünfeld: Symmetrical Variation (6 0-0 c6 7 cxd5 cxd5).} 12. e3 {[%emt 0:08:19]} e6 {[%emt 0:01:35]} 13. b3 {[%emt 0:07:33]} b6 {[%emt 0:03:51] The position is equal.} 14. Ba3 {[%emt 0:02:08]} Re8 {[%emt 0:06:06]} 15. Rc1 {[%emt 0:02:41][%cal Oc3d5]} Ba6 {[%emt 0:03:09]} 16. Re1 {[%emt 0:00:38][%cal Oc3d5]} Rc8 {[%emt 0:01:33] [#]} 17. Qd2 $146 {[%emt 0:02:48]} ({Predecessor:} 17. Bf1 Bxf1 18. Rxf1 Qd7 19. Kg2 a6 20. Ne2 Red8 21. Qd2 Qb7 22. f3 Na7 23. Rxc8 Rxc8 {½-½ (41) Denger,P (2085)-Petzold,L (2259) Germany 2014}) 17... Bf8 {[%emt 0:04:29]} 18. Bxf8 {[%emt 0:00:52]} Rxf8 {[%emt 0:00:12]} 19. Ne2 {[%emt 0:07:07]} Qd6 {[%emt 0:03:01]} 20. Nf4 {[%emt 0:03:06]} Rc7 {[%emt 0:07:03]} 21. Rc2 {[%emt 0:01:27]} Rfc8 {[%emt 0:01:55]} 22. Rec1 {[%emt 0:00:33]} Ne7 {[%emt 0:04:43]} 23. h4 {[%emt 0:02:50]} Rxc2 {[%emt 0:05:55]} 24. Rxc2 {[%emt 0:00:01]} Rxc2 {[%emt 0:00:02]} 25. Qxc2 {[%emt 0:00:06]} Qc6 {[%emt 0:00:14]} 26. Qb2 {[%emt 0:16:41]} Qd6 {[%emt 0:02:11] Inhibits Qa3.} 27. Bf1 {[%emt 0:00:00]} Bxf1 {[%emt 0:00:14]} 28. Kxf1 $11 {[%emt 0:00:00][%mdl 4096] Endgame KQN-KQN} f6 {[%emt 0:07:41]} 29. Nd3 {[%emt 0:00:00]} Kf7 {[%emt 0:00:12]} 30. Ke2 {[%emt 0:02:00]} Nc6 {[%emt 0:02:54]} 31. Qc3 {[%emt 0:00:00]} Ke7 {[%emt 0:02:05]} 32. Qc2 {[%emt 0:00:00]} Kd7 {[%emt 0:00:51]} 33. h5 {[%emt 0:00:00]} gxh5 {[%emt 0:04:57]} 34. Nf4 {[%emt 0:00:00]} Qe7 {[%emt 0:00:10]} (34... f5 $5 {[%cal Rh5h4]}) 35. Nxh5 {[%emt 0:00:00][%cal Oc2h7] Strongly threatening Qxh7!} Qf7 {[%emt 0:00:12]} (35... Kd6 $11) 36. Qxh7 $1 $18 {[%emt 0:00:00]} Qxh7 {[%emt 0:00:00]} (36... Ke7 {was worth a try.} 37. Qh6 Nd8) 37. Nxf6+ {[%emt 0:00:00] Weighted Error Value: White=0.02 (flawless) /Black=0.19 (very precise)} 1-0

[Event "34th GER-ch Seniors-50 2022"]
[Site "Magdeburg"]
[Date "2022.08.20"]
[Round "9.1"]
[White "Reddmann, Hauke"]
[Black "Zude, Arno"]
[Result "0-1"]
[ECO "E48"]
[WhiteElo "2181"]
[BlackElo "2371"]
[Annotator "TA"]
[PlyCount "39"]
[EventDate "2022.08.12"]
[EventType "swiss"]
[EventCountry "GER"]
[SourceTitle "playchess.com"]
[Source "ChessBase"]
[SourceQuality "1"]
[TimeControl "40/5400+30:1800+30"]

{[%evp 9,39,4,15,-15,-24,-36,-30,-29,-23,-22,-25,-63,-64,-63,-47,-129,-138,-128,-112,-342,-327,-562,-388,-604,-608,-878,-772,-732,-696,-968,-964,-913]} 1. d4 {[%emt 0:00:02]} Nf6 {[%emt 0:00:12]} 2. c4 {[%emt 0:00:23]} e6 {[%emt 0:00:07]} 3. Nc3 {[%emt 0:00:42]} Bb4 {[%emt 0:00:14]} 4. e3 {[%emt 0:00:52]} O-O {[%emt 0:00:24]} 5. Bd3 {[%emt 0:00:27]} d5 {[%emt 0:00:45][%cal Oe6e5]} 6. Qb3 {[%emt 0:01:51] E48: Nimzo-Indian: Rubinstein: 5 Bd3 d5 including 6 Ne2, but excluding 6 a3.} c5 {[%emt 0:03:58]} 7. a3 {[%emt 0:00:44] [#]} Bxc3+ $146 {[%emt 0:00:14]} ({Predecessor:} 7... Ba5 8. Nf3 dxc4 9. Qxc4 cxd4 10. exd4 b5 11. Qb3 Bb7 12. Be2 a6 13. O-O h6 {0-1 (35) Batricevic,J (2166)-Lekic,D (2430) Niksic 2014}) 8. bxc3 {[%emt 0:00:23] Black has an edge.} Nc6 {[%emt 0:01:32][%cal Bb8c6,Bc6e5,Be5d3][%mdl 32]} 9. cxd5 {[%emt 0:03:56]} exd5 {[%emt 0:00:12]} 10. dxc5 {[%emt 0:00:37]} Ne5 {[%emt 0:07:11] Pair of Knights!} 11. Be2 {[%emt 0:00:41]} Bf5 {[%emt 0:03:07] Black is more active.} 12. Nf3 {[%emt 0:03:50] [#]} (12. Qd1 $15) 12... Nd3+ $1 $17 {[%emt 0:01:23]} 13. Bxd3 {[%emt 0:00:08]} Bxd3 {[%emt 0:00:13]} 14. Qxb7 $2 {[%emt 0:01:46]} (14. Qd1 $17 Ba6 15. Qd4) 14... Ne4 $1 $19 {[%emt 0:05:19][%csl LRc3,LRc5]} 15. a4 $2 {[%emt 0:08:49]} (15. c6 {was called for.} Qf6 16. Qb4) 15... Qf6 {[%emt 0:02:15]} 16. Qb4 {[%emt 0:00:25]} (16. Qb3 $142) 16... Bc4 {[%emt 0:05:39] Threatens to win with ...Rfb8. Black is clearly winning.} 17. Ba3 {[%emt 0:02:39] [#]} Nxc5 $1 {[%emt 0:20:09][%mdl 512]} 18. Rd1 {[%emt 0:01:29]} Rfc8 {[%emt 0:01:34] Hoping for ...Rab8.} 19. Qxc4 {[%emt 0:01:51]} dxc4 {[%emt 0:00:25]} 20. O-O {[%emt 1:08:55] Black took control after the opening.  Weighted Error Value: White=1.00/Black=0.21 (precise)} 0-1

[Event "34th GER-ch Seniors-50 2022"]
[Site "Magdeburg"]
[Date "2022.08.20"]
[Round "9.2"]
[White "Matzat, Andre"]
[Black "Wacker, Peter"]
[Result "1/2-1/2"]
[ECO "D02"]
[WhiteElo "2034"]
[BlackElo "2263"]
[Annotator "TA"]
[PlyCount "102"]
[EventDate "2022.08.12"]
[EventType "swiss"]
[EventCountry "GER"]
[SourceTitle "playchess.com"]
[Source "ChessBase"]
[SourceQuality "1"]
[TimeControl "40/5400+30:1800+30"]

{[%evp 9,102,11,11,10,-7,-4,-6,0,0,-2,24,9,10,1,17,22,16,16,20,16,26,0,0,-13,-31,-35,22,-106,-58,-133,-133,-133,-132,-126,-121,-132,-131,-140,0,0,21,8,23,8,7,10,8,12,37,16,61,48,108,122,88,46,118,80,106,53,148,85,238,0,81,73,79,60,52,56,335,328,385,362,777,760,899,847,1067,1033,948,1034,927,722,667,354,745,0,0,0,0,0,0,0,0]} 1. d4 {[%emt 0:00:11]} Nf6 {[%emt 0:00:06]} 2. Nf3 {[%emt 0:00:17]} e6 {[%emt 0:00:15]} 3. Bf4 {[%emt 0:00:23]} d5 {[%emt 0:00:10]} 4. e3 {[%emt 0:00:52]} Bd6 {[%emt 0:00:06]} 5. Nbd2 {[%emt 0:00:24]} O-O {[%emt 0:01:06]} 6. c3 {[%emt 0:01:51] D02: 1 d4 d5 2 Nf3 sidelines, including 2...Nf6 3 g3 and 2...Nf6 3 Bf4.} c5 {[%emt 0:00:45]} 7. Bg3 {[%emt 0:01:35]} Qc7 {[%emt 0:00:21]} 8. dxc5 {[%emt 0:01:18]} Qxc5 {[%emt 0:01:57]} 9. Bd3 {[%emt 0:00:20]} Qc7 {[%emt 0:04:39]} 10. e4 {[%emt 0:07:15]} Nbd7 {[%emt 0:05:22] Against e5} 11. Qe2 {[%emt 0:02:07] [#] Hoping for e5.} Bxg3 $146 {[%emt 0:19:12]} ({Predecessor:} 11... dxe4 12. Nxe4 Nxe4 13. Bxe4 e5 14. O-O-O Nf6 15. Bc2 Bg4 16. Bh4 Bxf3 17. gxf3 Be7 {½-½ (103) Nihal,S (2618)-Sargsyan,S (2601) Chess.com INT 2020}) 12. hxg3 {[%emt 0:01:08] aiming for e5.} h6 {[%emt 0:00:12]} 13. Rh4 {[%emt 0:05:34] Black should prevent e5.} dxe4 {[%emt 0:05:54]} 14. Nxe4 {[%emt 0:00:44]} Nxe4 {[%emt 0:01:01]} 15. Bxe4 {[%emt 0:00:44]} (15. Qxe4 $5 {[%cal Re4h7]} Nf6 16. Qe5 Qxe5+ 17. Nxe5 $11) 15... Nf6 {[%emt 0:04:38]} 16. Ne5 {[%emt 0:11:46][%cal Oe1c1]} Nxe4 {[%emt 0:03:22]} (16... Qxe5 $2 17. Bh7+ $1 {[%mdl 512]} Nxh7 18. Qxe5 $18) 17. Qxe4 {[%emt 0:00:13]} f6 {[%emt 0:05:11]} (17... Rd8 $1 $15) 18. Ng6 {[%emt 0:04:39]} (18. Ng4 $11 f5 19. Qe5) 18... Rd8 {[%emt 0:03:57]} (18... Re8 $1 $17) 19. Rd1 {[%emt 0:09:55]} ({Better is} 19. Qb4 $15) 19... Rxd1+ $17 {[%emt 0:02:01]} 20. Kxd1 {[%emt 0:00:31] [#]} Qf7 $1 {[%emt 0:01:56] Strongly threatening ...f5.} 21. Qd3 {[%emt 0:05:09]} Bd7 {[%emt 0:05:39]} 22. Rd4 {[%emt 0:00:36]} Be8 {[%emt 0:00:06]} 23. Nh4 {[%emt 0:01:45][%cal Bg6h4,Bh4f3,Bf3d2,Bd2e4][%mdl 32]} g5 {[%emt 0:07:37]} (23... e5 $17 24. Rd8 e4) 24. Nf3 $11 {[%emt 0:01:32]} Qe7 {[%emt 0:00:21]} 25. Nd2 {[%emt 0:08:22]} Kg7 {[%emt 0:03:05]} 26. g4 {[%emt 0:05:43]} Rc8 {[%emt 0:01:39]} 27. f3 {[%emt 0:13:06]} Rc7 {[%emt 0:00:36]} 28. Ne4 {[%emt 0:02:15]} a6 {[%emt 0:06:32]} 29. a4 {[%emt 0:02:27][%cal Ba2a4,Ba4a5][%mdl 32]} Bf7 {[%emt 0:01:37]} (29... e5 {is interesting.} 30. Rd6 Bxa4+ 31. Ke1 Rd7) 30. Rd6 {[%emt 0:00:55]} h5 {[%emt 0:01:46]} (30... Be8 $14) 31. gxh5 $16 {[%emt 0:00:36]} Bxh5 {[%emt 0:00:07]} 32. Qd4 {[%emt 0:01:02]} Bf7 {[%emt 0:02:10]} (32... Bg6 $14) 33. a5 {[%emt 0:02:45]} Be8 {[%emt 0:05:19]} 34. Kd2 {[%emt 0:03:03]} (34. Kc1 $16) 34... Bf7 {[%emt 0:03:25]} (34... Bb5 $14) 35. b4 {[%emt 0:01:12] 0x0.0019eea02ddbdp-1022s more active pieces.} ({White should play} 35. Qb6) 35... e5 $2 {[%emt 0:01:50] [#]} (35... Bg6 $16) 36. Qd3 $2 {[%emt 0:02:14]} ({Only move:} 36. Qb6 $1 $18) 36... Bc4 {[%emt 0:01:08]} (36... f5 $1 $11 {keeps the balance.} 37. Ng3 Be6) 37. Qe3 {[%emt 0:00:31]} Rd7 {[%emt 0:02:15]} 38. Qb6 {[%emt 0:00:18]} Bb5 {[%emt 0:00:59]} ({Less strong is} 38... f5 39. Rxd7 Qxd7+ 40. Qd6 $16) 39. Ke3 $36 {[%emt 0:00:50][%mdl 2048] Rxd7 is the strong threat. White is pushing.} Rxd6 {[%emt 0:00:03][%mdl 8192]} (39... Bc6 $14 40. Rxc6 bxc6) 40. Nxd6 $14 {[%emt 0:00:12][%mdl 4096] Endgame Black must now prevent Nf5+. KQB-KQN} Qd7 {[%emt 0:00:06] Inhibits Nf5+.} 41. Qxb7 {[%emt 0:30:37]} Kf8 $2 {[%emt 0:31:41]} (41... Qxb7 42. Nxb7 Kf8) 42. Qb8+ $18 {[%emt 0:00:00]} Ke7 {[%emt 0:00:00]} 43. Nxb5 {[%emt 0:00:00]} axb5 {[%emt 0:00:00] KQ-KQ} 44. a6 {[%emt 0:00:00] White threatens Qb7 and mate.} Qd1 {[%emt 0:00:00]} 45. Qc7+ {[%emt 0:00:00]} Ke6 {[%emt 0:00:00]} 46. Qb6+ {[%emt 0:00:00]} Ke7 {[%emt 0:00:00]} 47. Qc5+ {[%emt 0:00:00]} Ke6 $2 {[%emt 0:00:00]} (47... Kf7 48. a7 f5 49. Qxe5 Qg1+ 50. Kd2 Qf2+ 51. Kd3 Qxa7 52. Qxf5+ Kg8 53. Qxg5+ Kh8 54. Qe5+ Kh7 55. Qxb5 Qa1) 48. Kf2 $2 {[%emt 0:00:00]} ({White should try} 48. Qc6+ $18 Ke7 49. Ke4) 48... Qd2+ $11 {[%emt 0:00:00] The position is equal.} 49. Kf1 {[%emt 0:00:00]} Qd1+ {[%emt 0:00:00]} 50. Kf2 {[%emt 0:00:00]} Qd2+ {[%emt 0:00:00]} 51. Kf1 {[%emt 0:00:00]} Qd1+ {[%emt 0:00:00] Weighted Error Value: White=0.41/Black=0.36} 1/2-1/2

[Event "34th GER-ch Seniors-50 2022"]
[Site "Magdeburg"]
[Date "2022.08.20"]
[Round "9.3"]
[White "De Roda Husman, Juan"]
[Black "Koscielski, Janusz"]
[Result "1-0"]
[ECO "B18"]
[WhiteElo "2266"]
[BlackElo "2255"]
[Annotator "TA"]
[PlyCount "83"]
[EventDate "2022.08.12"]
[EventType "swiss"]
[EventCountry "GER"]
[SourceTitle "playchess.com"]
[Source "ChessBase"]
[SourceQuality "1"]
[TimeControl "40/5400+30:1800+30"]

{[%evp 19,83,0,-9,-14,-9,-41,0,0,0,0,0,0,25,26,31,25,24,0,20,0,0,-20,0,-10,-16,-57,-55,-71,-22,-46,0,0,0,0,0,0,0,0,21,18,21,26,22,20,140,77,100,83,106,80,1233,1193,1219,1213,1127,1128,29979,29979,29988,29989,29991,29992,29992,29993,29993,29994]} 1. e4 {[%emt 0:00:03]} c6 {[%emt 0:00:08]} 2. d4 {[%emt 0:00:14]} d5 {[%emt 0:00:05]} 3. Nd2 {[%emt 0:00:15]} dxe4 {[%emt 0:00:09]} 4. Nxe4 {[%emt 0:00:20]} Bf5 {[%emt 0:00:13]} 5. Ng3 {[%emt 0:00:27]} Bg6 {[%emt 0:00:05]} 6. Bc4 {[%emt 0:00:17]} e6 {[%emt 0:01:44]} 7. N1e2 {[%emt 0:00:37]} Bd6 {[%emt 0:03:56]} 8. h4 {[%emt 0:00:24]} h6 {[%emt 0:01:27]} 9. Nf4 {[%emt 0:00:28]} Bxf4 {[%emt 0:04:14]} 10. Bxf4 {[%emt 0:00:24]} Nf6 {[%emt 0:00:06]} 11. h5 {[%emt 0:01:51] B18: Classical Caro-Kann: 4...Bf5 sidelines.} Bh7 {[%emt 0:01:10]} 12. Qe2 {[%emt 0:02:56]} O-O {[%emt 0:03:57]} (12... b5 $5 {[%cal Rb5c4]} 13. Bb3 Qxd4 $11) 13. O-O-O {[%emt 0:02:03] The position is equal.} Nbd7 {[%emt 0:05:29]} 14. Kb1 {[%emt 0:06:19] [#]} a5 $146 {[%emt 0:04:45]} ({Predecessor:} 14... Nd5 15. Bd6 Re8 16. Bd3 Bxd3 17. Qxd3 b5 18. Ne4 N7f6 19. Nxf6+ Qxf6 20. Qe2 Qd8 {1-0 (31) Sadvakasov,D (2610)-Sher,M (2420) Paris 2005}) 15. Bd3 {[%emt 0:06:15]} a4 {[%emt 0:10:23]} 16. Bxh7+ {[%emt 0:02:09]} Kxh7 {[%emt 0:00:08]} 17. a3 {[%emt 0:02:45]} Qa5 {[%emt 0:08:22]} 18. Be5 {[%emt 0:14:05]} Rad8 {[%emt 0:14:24]} 19. c4 {[%emt 0:09:57]} Rfe8 {[%emt 0:09:09]} 20. f4 {[%emt 0:07:17]} Kg8 {[%emt 0:02:39]} 21. Rc1 {[%emt 0:09:28]} c5 {[%emt 0:03:06]} 22. dxc5 {[%emt 0:10:23]} Qxc5 {[%emt 0:00:33]} 23. Rhe1 {[%emt 0:02:12][%cal Bh1e1,Be1d1,Bd1d6][%mdl 32]} Qc6 {[%emt 0:07:15]} ({Better is} 23... Nxe5 $17 24. Qxe5 Qxe5 25. Rxe5 Rd2) 24. Red1 {[%emt 0:02:37]} Nxe5 {[%emt 0:05:47]} (24... Nc5 $15) 25. fxe5 $11 {[%emt 0:00:12]} Nd7 {[%emt 0:00:04] aiming for ...Nc5.} 26. Rd6 {[%emt 0:01:28]} Qc7 {[%emt 0:00:26][%cal Od7e5]} 27. Rcd1 {[%emt 0:01:30]} Nc5 {[%emt 0:00:12] Inhibits Qd3.} 28. Ne4 {[%emt 0:00:54] [#] Black must now prevent Rxd8.} Nxe4 {[%emt 0:00:27]} 29. Qxe4 {[%emt 0:00:07][%cal Oc4c5]} Rc8 {[%emt 0:00:45]} 30. R1d4 {[%emt 0:00:56]} Qc5 {[%emt 0:05:35]} 31. g4 {[%emt 0:06:56]} Rb8 {[%emt 0:02:48] [#]} (31... Rc6 $1 $11) 32. Ka2 {[%emt 0:02:10] White is more active.} (32. Qe3 $142 $1) 32... b5 $16 {[%emt 0:03:00]} 33. Rc6 $36 {[%emt 0:00:23][%mdl 2048] White is in control.} Qe7 {[%emt 0:00:47]} 34. c5 {[%emt 0:00:25][%cal Bc4c5,Bc5c6][%mdl 32] And now Rcd6 would win.} Rec8 $2 {[%emt 0:00:52][%mdl 8192] Loses the game.} (34... Qb7 $16) 35. Rxc8+ $18 {[%emt 0:02:37]} Rxc8 {[%emt 0:00:01][%mdl 4096] Endgame KQR-KQR} 36. c6 {[%emt 0:00:10]} Qc5 {[%emt 0:01:39]} 37. Rd7 {[%emt 0:00:10]} ({Less strong is} 37. Rd6 Kf8 $14) 37... Kf8 {[%emt 0:02:19]} 38. Qf3 {[%emt 0:00:32][%csl Gd7][%cal Rf3f7] White mates.} f6 {[%emt 0:00:49]} 39. exf6 {[%emt 0:00:15]} Qc4+ {[%emt 0:00:24]} 40. Kb1 {[%emt 0:00:25]} Kg8 {[%emt 0:00:36]} 41. fxg7 {[%emt 0:36:14]} e5 {[%emt 0:02:53]} 42. c7 {[%emt 0:02:20] Weighted Error Value: White=0.10 (very precise) /Black=0.38} 1-0